[Event "CCT Airthings Masters Play-In 2023"]
[Site "Online"]
[Date "2023.02.03"]
[Round "2"]
[White "wonderfultime"]
[Black "MikaelyanArman"]
[Result "1-0"]
[ECO "D02"]
[WhiteElo "2635"]
[BlackElo "2467"]
[Annotator "TA"]
[PlyCount "79"]
[EventDate "2023.02.03"]
[EventType "swiss"]
[EventCountry "NET"]
[SourceTitle "playchess.com"]
[Source "ChessBase"]
[SourceQuality "1"]
[TimeControl "600+2"]

{[%evp 9,79,2,0,0,6,0,0,0,0,0,0,-3,0,0,0,-4,0,2,35,37,37,38,25,18,42,41,100,45,87,88,91,89,114,104,110,103,125,125,172,180,187,173,246,262,270,268,262,282,300,295,295,291,305,260,315,319,339,308,374,375,381,377,414,413,410,412,414,401,1129,1106,1008,899]} 1. d4 {[%emt 0:00:04]} d5 {[%emt 0:00:05]} 2. Nf3 {[%emt 0:00:02]} Nf6 {[%emt 0:00:01]} 3. Bf4 {[%emt 0:00:00]} c5 {[%emt 0:00:07]} 4. c3 {[%emt 0:00:01]} e6 {[%emt 0:00:10]} 5. e3 {[%emt 0:00:02]} Bd6 {[%emt 0:00:02]} 6. Nbd2 {[%emt 0:00:01] D02: 1 d4 d5 2 Nf3 sidelines, including 2...Nf6 3 g3 and 2...Nf6 3 Bf4.} O-O {[%emt 0:00:19] 6...0-0 scores better than 6...Qc7.} 7. Bd3 {[%emt 0:00:01]} Bxf4 {[%emt 0:00:36]} 8. exf4 {[%emt 0:00:02] The position is equal.} b6 {[%emt 0:00:00]} 9. Qe2 {[%emt 0:00:02]} a5 {[%emt 0:00:06]} 10. O-O {[%emt 0:00:02]} Ba6 {[%emt 0:00:05]} 11. Bxa6 {[%emt 0:00:01]} Nxa6 {[%emt 0:00:03]} 12. Rfe1 {[%emt 0:00:00]} Qd6 {[%emt 0:01:35]} 13. g3 {[%emt 0:00:03] [#]} cxd4 $146 {[%emt 0:00:07]} ({Predecessor:} 13... Nb8 14. Ne5 cxd4 15. cxd4 Nc6 16. Ndf3 Rfc8 17. Rac1 h6 18. Qb5 Ne7 19. a3 Rc7 20. Rxc7 Qxc7 21. Qe2 {½-½ Sadhwani,R (2545)-Demchenko,A (2641) PNWCC Online blitz JP 18th 2020 (8)}) 14. Nxd4 {[%emt 0:00:04]} Rfe8 {[%emt 0:00:20]} 15. Rad1 {[%emt 0:00:12]} Nc5 {[%emt 0:00:05]} 16. Nf1 {[%emt 0:01:29][%cal Bd2f1,Bf1e3,Be3c4,Bc4b6][%mdl 32]} Nfe4 {[%emt 0:00:16]} 17. Ne3 {[%emt 0:00:02]} a4 {[%emt 0:00:18]} (17... Nf6 $14) 18. a3 {[%emt 0:00:32]} (18. c4 $16) 18... h6 {[%emt 0:00:35]} 19. c4 {[%emt 0:00:05] And now cxd5 would win. White now steadily converts the win.} dxc4 {[%emt 0:00:49]} 20. Nxc4 {[%emt 0:00:03]} Qc7 {[%emt 0:00:09] [#]} 21. Nb5 $1 {[%emt 0:00:38]} Qe7 {[%emt 0:00:41]} 22. Rd4 {[%emt 0:01:59]} (22. Nxb6 $6 Rab8 $11) 22... Nf6 {[%emt 0:01:07]} 23. Nxb6 {[%emt 0:00:09] White is more active.} Rad8 {[%emt 0:00:24] [#]} (23... Ra6 $16) 24. Red1 $1 $18 {[%emt 0:00:56][%cal Be1d1,Bd1d4,Bd4d8][%mdl 32]} (24. Nxa4 $2 Rxd4 25. Nxd4 Nxa4 $19) 24... Rxd4 {[%emt 0:00:05]} 25. Rxd4 {[%emt 0:00:00]} (25. Nxd4 $6 Qb7 26. Nc4 Rd8 $16) 25... e5 {[%emt 0:01:28]} (25... Rd8 {keeps fighting.}) 26. fxe5 {[%emt 0:00:14]} Qxe5 {[%emt 0:00:00]} 27. Qxe5 {[%emt 0:00:05]} Rxe5 {[%emt 0:00:00]} 28. Nc3 {[%emt 0:00:03] Prevents Re2.} ({Inferior is} 28. Nxa4 Nxa4 29. Rxa4 Rxb5 30. Ra8+ Kh7 $17) 28... Nb3 {[%emt 0:00:38]} 29. Rd8+ {[%emt 0:00:10]} (29. Rxa4 g6 30. Ra8+ Kg7 $18) 29... Kh7 {[%emt 0:00:03]} 30. Nbxa4 {[%emt 0:00:01]} ({Much less strong is} 30. Ncxa4 $6 Re2 31. Nc4 Ne4 $18) 30... h5 {[%emt 0:00:13]} 31. h3 {[%emt 0:00:10]} g5 {[%emt 0:00:01]} 32. Nb6 {[%emt 0:00:08]} Re1+ {[%emt 0:00:07]} 33. Kg2 {[%emt 0:00:02]} g4 {[%emt 0:00:06]} 34. hxg4 {[%emt 0:00:04]} hxg4 {[%emt 0:00:00]} 35. Nbd5 {[%emt 0:00:51]} Nxd5 {[%emt 0:00:05]} 36. Nxd5 {[%emt 0:00:04]} ({Don't do} 36. Rxd5 Kg6 37. Nd1 Re4 38. Rd6+ f6 $18) 36... Kg7 {[%emt 0:00:12]} 37. Ne3 {[%emt 0:00:03] Wards off Rd1} Re2 {[%emt 0:00:06]} 38. Nxg4 {[%emt 0:00:01]} Rxb2 {[%emt 0:00:01]} (38... Re1 $142 39. Ne3 Ra1) 39. Rb8 {[%emt 0:00:02]} Rb1 {[%emt 0:00:03]} 40. a4 {[%emt 0:00:03] Weighted Error Value: White=0.04 (flawless) /Black=0.19 (very precise)} 1-0

[Event "CCT Airthings Masters Play-In 2023"]
[Site "Online"]
[Date "2023.02.03"]
[Round "2"]
[White "vladislavkovalev"]
[Black "titan013"]
[Result "0-1"]
[ECO "C42"]
[WhiteElo "2632"]
[BlackElo "2453"]
[Annotator "NA"]
[PlyCount "136"]
[EventDate "2023.02.03"]
[EventType "swiss"]
[EventCountry "NET"]
[SourceTitle "playchess.com"]
[Source "ChessBase"]
[SourceQuality "1"]
[TimeControl "600+2"]

1. e4 {[%emt 0:00:03]} e5 {[%emt 0:00:04]} 2. Nf3 {[%emt 0:00:00]} Nf6 {[%emt 0:00:01]} 3. Nc3 {[%emt 0:00:07]} Bb4 {[%emt 0:00:03]} 4. Nxe5 {[%emt 0:00:02]} O-O {[%emt 0:00:00]} 5. Nd3 {[%emt 0:00:02]} Bxc3 {[%emt 0:00:01]} 6. dxc3 {[%emt 0:00:00]} Nxe4 {[%emt 0:00:01]} 7. Be2 {[%emt 0:00:01]} Re8 {[%emt 0:00:02]} 8. O-O {[%emt 0:00:01]} d6 {[%emt 0:00:01]} 9. Re1 {[%emt 0:00:08]} Nd7 {[%emt 0:00:04]} 10. f3 {[%emt 0:00:24]} Nec5 {[%emt 0:00:05]} 11. b3 {[%emt 0:00:20]} b6 {[%emt 0:00:12]} 12. Bb2 {[%emt 0:00:02]} Bb7 {[%emt 0:00:04]} 13. Qd2 {[%emt 0:00:07]} a5 {[%emt 0:00:10]} 14. Bf1 {[%emt 0:00:12]} Qh4 {[%emt 0:00:40]} 15. Qf4 {[%emt 0:01:54]} Qxf4 {[%emt 0:00:08]} 16. Nxf4 {[%emt 0:00:01]} Rxe1 {[%emt 0:00:46]} 17. Rxe1 {[%emt 0:00:00]} a4 {[%emt 0:00:02]} 18. c4 {[%emt 0:00:18]} axb3 {[%emt 0:00:02]} 19. axb3 {[%emt 0:00:00]} Ra2 {[%emt 0:00:34]} 20. Rb1 {[%emt 0:00:03]} Kf8 {[%emt 0:00:47]} 21. Ne2 {[%emt 0:00:14]} Ra8 {[%emt 0:00:57]} 22. Nc3 {[%emt 0:00:07]} Nf6 {[%emt 0:00:08]} 23. Kf2 {[%emt 0:00:04]} Ne6 {[%emt 0:00:09]} 24. Ra1 {[%emt 0:00:55]} Rxa1 {[%emt 0:00:03]} 25. Bxa1 {[%emt 0:00:00]} g5 {[%emt 0:00:09]} 26. Nb5 {[%emt 0:00:09]} Ke7 {[%emt 0:00:08]} 27. Bd3 {[%emt 0:00:02]} h6 {[%emt 0:00:57]} 28. Bf5 {[%emt 0:00:13]} Ne8 {[%emt 0:00:02]} 29. Bb2 {[%emt 0:00:17]} Bc6 {[%emt 0:00:18]} 30. Ke3 {[%emt 0:01:08]} Bd7 {[%emt 0:00:47]} 31. Bd3 {[%emt 0:01:07]} Nf4 {[%emt 0:00:05]} 32. Bf1 {[%emt 0:00:01]} Bf5 {[%emt 0:00:05]} 33. Nd4 {[%emt 0:00:07]} Bd7 {[%emt 0:00:07]} 34. g3 {[%emt 0:00:01]} Ng6 {[%emt 0:00:01]} 35. Bd3 {[%emt 0:00:10]} Ne5 {[%emt 0:00:02]} 36. Nf5+ {[%emt 0:00:51]} Bxf5 {[%emt 0:00:13]} 37. Bxf5 {[%emt 0:00:00]} Ng7 {[%emt 0:00:11]} 38. Bh3 {[%emt 0:00:02]} Nh5 {[%emt 0:00:37]} 39. Bc3 {[%emt 0:00:15]} Nf6 {[%emt 0:00:02]} 40. Bf5 {[%emt 0:00:10]} Ne8 {[%emt 0:00:26]} 41. f4 {[%emt 0:00:04]} gxf4+ {[%emt 0:00:05]} 42. Kxf4 {[%emt 0:00:05]} Kf6 {[%emt 0:00:02]} 43. Bh3 {[%emt 0:00:12]} Ng7 {[%emt 0:00:03]} 44. Ke4 {[%emt 0:00:20]} Ne6 {[%emt 0:00:04]} 45. Kd5 {[%emt 0:00:23]} Ng5 {[%emt 0:01:05]} 46. Bg4 {[%emt 0:00:13]} c6+ {[%emt 0:00:15]} 47. Kxd6 {[%emt 0:00:17]} Ne4+ {[%emt 0:00:01]} 48. Kc7 {[%emt 0:00:00]} Nxc3 {[%emt 0:00:01]} 49. Bh3 {[%emt 0:00:01]} b5 {[%emt 0:00:05]} 50. cxb5 {[%emt 0:00:05]} Nxb5+ {[%emt 0:00:01]} 51. Kb6 {[%emt 0:00:02]} Nd4 {[%emt 0:00:00]} 52. c3 {[%emt 0:00:07]} Nxb3 {[%emt 0:00:02]} 53. Bg2 {[%emt 0:00:00]} c5 {[%emt 0:00:05]} 54. Bd5 {[%emt 0:00:04]} c4 {[%emt 0:00:01]} 55. Kb5 {[%emt 0:00:02]} Nd2 {[%emt 0:00:04]} 56. Kc5 {[%emt 0:00:03]} Nef3 {[%emt 0:00:03]} 57. h3 {[%emt 0:00:03]} Ng5 {[%emt 0:00:06]} 58. Kd4 {[%emt 0:00:09]} Nxh3 {[%emt 0:00:07]} 59. Ke3 {[%emt 0:00:00]} Nf1+ {[%emt 0:00:04]} 60. Ke2 {[%emt 0:00:11]} Nxg3+ {[%emt 0:00:02]} 61. Kf3 {[%emt 0:00:00]} Nf5 {[%emt 0:00:02]} 62. Bxc4 {[%emt 0:00:01]} Ng5+ {[%emt 0:00:00]} 63. Kf4 {[%emt 0:00:02]} Ne6+ {[%emt 0:00:01]} 64. Kf3 {[%emt 0:00:01]} Ke5 {[%emt 0:00:01]} 65. Bd3 {[%emt 0:00:01]} h5 {[%emt 0:00:02]} 66. Bf1 {[%emt 0:00:01]} Ng5+ {[%emt 0:00:01]} 67. Kf2 {[%emt 0:00:02]} h4 {[%emt 0:00:01]} 68. c4 {[%emt 0:00:02]} Kd4 {[%emt 0:00:02]} 0-1

[Event "CCT Airthings Masters Play-In 2023"]
[Site "Online"]
[Date "2023.02.03"]
[Round "2"]
[White "GGuseinov"]
[Black "Denis_Makhnyov"]
[Result "1-0"]
[ECO "C68"]
[WhiteElo "2628"]
[BlackElo "2447"]
[Annotator "TA RC"]
[PlyCount "57"]
[EventDate "2023.02.03"]
[EventType "swiss"]
[EventCountry "NET"]
[SourceTitle "playchess.com"]
[Source "ChessBase"]
[SourceQuality "1"]
[TimeControl "600+2"]

{[%evp 15,57,29,25,27,25,25,37,34,39,41,38,26,170,168,184,162,171,170,156,83,80,83,91,95,79,58,70,67,374,364,511,516,508,506,502,506,727,731,666,708,1804,982,29953,6218]} 1. e4 {[%emt 0:00:08]} e5 {[%emt 0:00:05]} 2. Nf3 {[%emt 0:00:34]} Nc6 {[%emt 0:00:02]} 3. Bb5 {[%emt 0:00:11]} a6 {[%emt 0:00:04]} 4. Bxc6 {[%emt 0:00:05]} dxc6 {[%emt 0:00:02]} 5. O-O {[%emt 0:00:02]} Qd6 {[%emt 0:00:02]} 6. d3 {[%emt 0:00:03]} Bg4 {[%emt 0:01:05]} 7. Be3 {[%emt 0:00:13]} f6 {[%emt 0:00:07]} 8. Nbd2 {[%emt 0:00:03]} O-O-O {[%emt 0:00:27]} 9. Qe2 $5 {[%emt 0:00:16][%mdl 4] Leaves trodden paths. C68: Ruy Lopez: Exchange Variation, sidelines.} g5 {[%emt 0:00:16]} 10. Rfb1 {[%emt 0:00:08]} Ne7 {[%emt 0:00:40][%cal Bg8e7,Be7g6,Bg6f4][%mdl 32]} 11. b4 {[%emt 0:00:38][%cal Bb2b4,Bb4b5][%mdl 32] White is slightly better.} Ng6 {[%emt 0:00:16]} 12. a4 {[%emt 0:00:01] [#]} Nf4 $146 {[%emt 0:00:02]} ({Predecessor:} 12... Bd7 13. Nb3 Nf4 14. Qf1 Qe6 15. Bc5 Bg7 16. c4 Be8 17. Ne1 Bh5 18. Ra2 b6 {0-1 Voronov,Y (2242)-Burdalev,K (2204) Kiev Independence Cup-B 9th 2009 (9)}) 13. Qf1 {[%emt 0:00:03] Threatens to win with b5.} h5 {[%emt 0:01:17] [#]} (13... Qd7 $11 {and Black has nothing to worry.}) 14. b5 $1 $18 {[%emt 0:00:05]} c5 {[%emt 0:00:02]} 15. Nc4 {[%emt 0:00:39]} Qe6 {[%emt 0:00:03]} 16. Bxf4 {[%emt 0:00:28]} gxf4 {[%emt 0:00:39] [#]} 17. Nfd2 {[%emt 0:00:30] Excellent horsemanship.} (17. Nh4 $142 $1 f3 18. Nxf3 (18. gxf3 Bh3 $17)) 17... Rg8 {[%emt 0:01:00] Hoping for ...Bh3.} 18. Kh1 $36 {[%emt 0:00:25][%mdl 2048] f3 is the strong threat. White is on the roll.} h4 {[%emt 0:00:34][%cal Of4f3]} 19. f3 {[%emt 0:00:17]} Bh5 {[%emt 0:00:01][%cal Oh4h3]} 20. bxa6 {[%emt 0:00:21]} Qxa6 {[%emt 0:00:03]} 21. Rb5 {[%emt 0:00:08]} b6 $2 {[%emt 0:00:30][%mdl 8192]} ({Better is} 21... Be8 $14) 22. d4 {[%emt 0:00:46]} h3 {[%emt 0:03:10]} (22... exd4 $2 23. Nxb6+ cxb6 24. Rxc5+ Kb7 25. Rc7+ (25. Rxh5 Qxf1+ 26. Rxf1 d3 $14) 25... Kxc7 26. Qxa6 $18) (22... Kb8 $142 23. Nxb6 c6) 23. g4 {[%emt 0:00:09]} (23. dxe5 $2 {perishes.} hxg2+ $19) 23... fxg3 {[%emt 0:00:02] Strongly threatening ...g2+.} 24. Qxh3+ {[%emt 0:00:04]} (24. dxe5 $2 {loses.} g2+ 25. Kg1 gxf1=Q+ $19) 24... Kb8 {[%emt 0:00:03] aiming for ...Be8.} 25. Qxh5 {[%emt 0:00:01]} g2+ {[%emt 0:00:01]} 26. Kg1 {[%emt 0:00:01]} cxd4 {[%emt 0:00:06]} 27. Rab1 {[%emt 0:00:05][%cal Rc4b6] Nxb6! would be deadly.} Qxa4 {[%emt 0:00:12]} 28. Qf7 {[%emt 0:00:09] White threatens Rxb6+ and mate.} Bc5 {[%emt 0:00:03]} 29. Rxc5 {[%emt 0:00:05] Weighted Error Value: White=0.07 (flawless) /Black=0.63} 1-0

[Event "CCT Airthings Masters Play-In 2023"]
[Site "Online"]
[Date "2023.02.03"]
[Round "2"]
[White "viviania"]
[Black "Anonymous"]
[Result "0-1"]
[ECO "C78"]
[WhiteElo "2615"]
[BlackElo "2437"]
[Annotator "TA"]
[PlyCount "52"]
[EventDate "2023.02.03"]
[EventType "swiss"]
[EventCountry "NET"]
[SourceTitle "playchess.com"]
[Source "ChessBase"]
[SourceQuality "1"]
[TimeControl "600+2"]

{[%evp 24,52,31,22,15,36,40,26,28,25,0,0,0,0,0,0,2,0,42,-19,-14,-27,-23,-40,-12,-21,-12,-18,-22,-512,-509]} 1. e4 {[%emt 0:00:05]} e5 {[%emt 0:00:05]} 2. Nf3 {[%emt 0:00:01]} Nc6 {[%emt 0:00:01]} 3. Bb5 {[%emt 0:00:01]} a6 {[%emt 0:00:01]} 4. Ba4 {[%emt 0:00:01]} Nf6 {[%emt 0:00:01]} 5. O-O {[%emt 0:00:01]} b5 {[%emt 0:00:01]} 6. Bb3 {[%emt 0:00:02]} Bc5 {[%emt 0:00:00]} 7. c3 {[%emt 0:00:02]} d6 {[%emt 0:00:01]} 8. a4 {[%emt 0:00:02]} Rb8 {[%emt 0:00:02]} 9. d4 {[%emt 0:00:02]} Bb6 {[%emt 0:00:01]} 10. Na3 {[%emt 0:00:01]} O-O {[%emt 0:00:04]} 11. axb5 {[%emt 0:00:01]} axb5 {[%emt 0:00:01]} 12. Nxb5 {[%emt 0:00:01]} Bg4 {[%emt 0:00:02]} 13. Bc2 {[%emt 0:00:01]} Bxf3 {[%emt 0:00:13] C78: Ruy Lopez: Archangelsk and Möller Defences.} 14. gxf3 {[%emt 0:00:01]} Nh5 {[%emt 0:00:07]} 15. f4 {[%emt 0:00:34]} Nxf4 {[%emt 0:00:04] [#] ( -> ...Qg5+). White has an edge.} 16. Bxf4 {[%emt 0:00:01]} exf4 {[%emt 0:00:00]} 17. Na3 {[%emt 0:00:02]} Ne7 {[%emt 0:00:07]} 18. Nc4 {[%emt 0:00:02]} c5 {[%emt 0:00:07]} 19. dxc5 {[%emt 0:00:08]} Bxc5 {[%emt 0:00:03] [#]} 20. Kh1 $146 {[%emt 0:00:20]} ({Predecessor:} 20. b4 Bb6 21. Qh5 Rc8 22. Bb3 Rxc4 23. Bxc4 Qc8 24. Ra6 Bxf2+ 25. Rxf2 Qxc4 26. Rxd6 Qxc3 {½-½ Ivic,V (2610)-Maghsoodloo,P (2701) Belgrade 2022 (2)}) 20... Ng6 {[%emt 0:00:07]} 21. f3 {[%emt 0:00:56]} (21. b4 $14 Bb6 22. Qxd6 (22. Nxd6 Qf6 $11)) 21... Qc7 {[%emt 0:01:04]} 22. Qe2 {[%emt 0:00:15]} Ne5 {[%emt 0:00:20] ...Nxc4 would be deadly.} 23. Bd3 {[%emt 0:00:33]} Rfe8 {[%emt 0:00:39][%cal Bf8e8,Be8e5,Be5d5][%mdl 32]} 24. Nxe5 {[%emt 0:00:06]} Rxe5 {[%emt 0:00:13]} 25. Bc4 {[%emt 0:00:04] White is weak on the dark squares} Qe7 {[%emt 0:00:47][%cal Od6d5]} 26. Bd5 $2 {[%emt 0:00:21][%mdl 8192] [#]} (26. Rfd1 $11) 26... Rxd5 {[%emt 0:00:44][%mdl 64] Pin.   Weighted Error Value: White=0.56/Black=0.08 (flawless)} 0-1

[Event "CCT Airthings Masters Play-In 2023"]
[Site "Online"]
[Date "2023.02.03"]
[Round "2"]
[White "exoticprincess"]
[Black "Sankalp_Gupta"]
[Result "1-0"]
[ECO "C44"]
[WhiteElo "2613"]
[BlackElo "2432"]
[Annotator "TA"]
[PlyCount "113"]
[EventDate "2023.02.03"]
[EventType "swiss"]
[EventCountry "NET"]
[SourceTitle "playchess.com"]
[Source "ChessBase"]
[SourceQuality "1"]
[TimeControl "600+2"]

{[%evp 9,113,-10,-14,-35,-25,-33,0,-34,-24,-28,-21,-34,0,0,0,0,0,-30,-22,-17,-23,-15,-10,-12,-25,-16,0,-11,-4,-15,-26,-22,-28,-69,-58,-77,-60,-47,-45,-57,-8,-14,-14,-60,-10,-23,0,0,0,0,0,0,0,7,25,23,49,20,62,31,98,85,93,95,127,134,134,139,131,137,173,187,143,51,53,60,52,5,69,66,179,17,28,36,31,18,97,0,0,0,0,0,0,0,0,0,0,-248,0,0,0,0,22,32,335,318]} 1. e4 {[%emt 0:00:08]} e5 {[%emt 0:00:08]} 2. Nf3 {[%emt 0:00:01]} Nf6 {[%emt 0:00:01]} 3. d3 {[%emt 0:00:05]} Nc6 {[%emt 0:00:03]} 4. c3 {[%emt 0:00:00]} d5 {[%emt 0:00:06]} 5. Qc2 {[%emt 0:00:01]} a5 {[%emt 0:00:02]} 6. a4 {[%emt 0:00:03] C44: Ponziani Opening and Scotch Gambit.} Bd6 {[%emt 0:00:10]} 7. Be2 {[%emt 0:00:02]} O-O {[%emt 0:00:01]} 8. O-O {[%emt 0:00:00] The position is equal.} h6 {[%emt 0:00:06] [#]} 9. Re1 $146 {[%emt 0:00:01]} ({Predecessor:} 9. Rd1 Qe7 10. Na3 Rd8 11. Nb5 Bc5 12. h3 Bb6 13. b3 Be6 14. Ba3 {1-0 Narayanan,S (2551)-Svane,R (2573) Titled Tuesday intern Qual4 25th April blitz 2017 (5)}) 9... Be6 {[%emt 0:00:09]} 10. Na3 {[%emt 0:00:02]} dxe4 {[%emt 0:00:14]} (10... Bc5 {with more complications.} 11. exd5 Bxd5 12. Nb5 Ng4) 11. dxe4 {[%emt 0:00:02]} Bc5 {[%emt 0:00:01]} 12. h3 {[%emt 0:00:05] Wards off Ng4} Qe7 {[%emt 0:00:25]} 13. Nb5 {[%emt 0:00:10]} Rfd8 {[%emt 0:00:23]} 14. Bf1 {[%emt 0:00:07]} Nh5 {[%emt 0:00:12]} 15. Be3 {[%emt 0:00:07]} Bxe3 {[%emt 0:00:06]} 16. Rxe3 {[%emt 0:00:00]} Nf4 {[%emt 0:00:01]} 17. Ree1 {[%emt 0:00:09]} Rd7 {[%emt 0:00:08]} 18. Rad1 {[%emt 0:00:04]} Rad8 {[%emt 0:00:00]} 19. Rxd7 {[%emt 0:00:03]} Qxd7 {[%emt 0:00:06]} 20. Kh2 {[%emt 0:00:28]} f6 {[%emt 0:00:02]} 21. Kg1 {[%emt 0:00:26]} Kh7 {[%emt 0:00:16]} 22. Na3 {[%emt 0:00:12]} Qf7 {[%emt 0:00:03]} 23. Nd2 $1 {[%emt 0:00:26] Prevents Bb3.} Ne7 {[%emt 0:01:37]} 24. Nac4 {[%emt 0:00:20]} b6 {[%emt 0:00:23]} (24... Neg6 $1 $15 25. Nxa5 Qd7) 25. Ne3 $11 {[%emt 0:00:03]} Neg6 {[%emt 0:00:13]} 26. Nf5 {[%emt 0:00:58] Prevents Nh4} (26. Kh1 $11) 26... Qd7 {[%emt 0:00:24]} (26... Bxf5 $15 27. exf5 Nh4) 27. Nf3 $1 {[%emt 0:00:11]} Nf8 {[%emt 0:00:38]} (27... Ne7 $5 {[%cal Re7f5]}) 28. g3 {[%emt 0:00:13]} N4g6 {[%emt 0:00:27]} 29. h4 {[%emt 0:01:55]} Qf7 {[%emt 0:00:06]} 30. Nd2 {[%emt 0:00:03][%cal Bf3d2,Bd2c4,Bc4e3,Be3g4][%mdl 32] Inhibits Bb3.} Ne7 {[%emt 0:00:08]} 31. Ne3 {[%emt 0:00:04]} Nc8 {[%emt 0:00:11]} 32. Rd1 {[%emt 0:00:29]} Qg6 {[%emt 0:00:28]} 33. Be2 {[%emt 0:00:34]} Rd7 {[%emt 0:00:08]} 34. Ndc4 {[%emt 0:00:18]} Qf7 {[%emt 0:00:09]} ({Black should try} 34... Rxd1+ $14 35. Qxd1 (35. Bxd1 Qf7 $11) 35... Qe8) 35. b4 $1 $16 {[%emt 0:00:11]} axb4 {[%emt 0:00:17]} 36. cxb4 {[%emt 0:00:01]} Qe7 {[%emt 0:00:06]} 37. Nd5 {[%emt 0:00:14]} Qd8 {[%emt 0:00:05]} 38. Nce3 {[%emt 0:00:02]} Na7 {[%emt 0:00:13]} 39. b5 $36 {[%emt 0:00:13][%mdl 2048] Black is under strong pressure.} Bf7 {[%emt 0:00:12]} 40. Bg4 {[%emt 0:00:04] Black is weak on the light squares} Be6 {[%emt 0:00:01]} 41. Rc1 {[%emt 0:00:06]} (41. Bf5+ $16 Bxf5 42. exf5 (42. Nxf5 Ne6 $16)) 41... Bxg4 $14 {[%emt 0:00:05]} 42. Nxg4 {[%emt 0:00:00][%cal Rd5c7]} Ne6 {[%emt 0:00:00]} 43. Qd2 {[%emt 0:00:12]} (43. Qc4 $14 Nc5 44. a5) 43... Rf7 {[%emt 0:00:47]} (43... Kh8 $11) 44. Kg2 {[%emt 0:00:15] White is much more active. The black rooks are badly placed.} Nd4 {[%emt 0:00:11]} (44... Kh8 $14) 45. Rc4 $2 {[%emt 0:00:25]} (45. f4 $1 $18 {[%cal Rf4e5]} Qd6 46. Rf1) 45... c6 {[%emt 0:00:15]} 46. bxc6 {[%emt 0:00:24]} Naxc6 {[%emt 0:00:00]} 47. h5 {[%emt 0:00:07]} Ne7 {[%emt 0:00:31] [#]} (47... Qd6 $11 {keeps the balance.}) 48. Ndxf6+ {[%emt 0:00:09]} Rxf6 $11 {[%emt 0:00:03]} 49. Nxf6+ {[%emt 0:00:07]} gxf6 {[%emt 0:00:00]} 50. Qc1 {[%emt 0:00:09]} Qa8 {[%emt 0:00:15]} 51. Qb1 {[%emt 0:00:05] Hoping for Rc7.} Kg7 {[%emt 0:00:05]} 52. Rc7 {[%emt 0:00:03]} Kf7 {[%emt 0:00:06]} 53. f3 $2 {[%emt 0:00:11]} (53. Kh2 $11 {and White is okay.}) 53... Qa5 $2 {[%emt 0:00:13]} ({Black should play} 53... Qxa4 $19 {...Qa3 is the strong threat.} 54. Rc1 Qa6) 54. Qa2+ {[%emt 0:00:02]} Ne6 {[%emt 0:00:06]} 55. Rb7 {[%emt 0:00:18] Threatens to win with Qb3.} Qb4 {[%emt 0:00:11] Wards off Qb3} (55... Qa6 $5 {[%cal Ra6b7]} 56. Rd7 b5 $11) 56. Kh3 {[%emt 0:00:09][%mdl 1024] White has compensation.} Qc5 $2 {[%emt 0:00:34][%mdl 8192] [#]} (56... Qd6 $1 $14) 57. Qb3 $1 {[%emt 0:00:02] Weighted Error Value: White=0.24 (precise) /Black=0.31} 1-0